[Event "1000 GM Labor Day Super Swiss 2024"]
[Site "San Jose"]
[Date "2024.09.01"]
[Round "4.16"]
[White "Karthi, Jashith"]
[Black "Atwell, Rose"]
[Result "0-1"]
[Annotator "TA"]
[ECO "D10"]
[WhiteElo "2066"]
[BlackElo "2208"]
[PlyCount "76"]
[EventDate "2024.08.30"]
[EventType "swiss"]
[EventCountry "USA"]
[SourceTitle "playchess.com"]
[Source "ChessBase"]
[SourceQuality "1"]
[TimeControl "5400+30"]

{[%evp 9,76,0,14,0,-4,-19,-9,-5,4,-44,-17,-12,10,12,7,0,62,0,0,-212,-223,-268,-277,-259,-295,-303,-327,-279,-279,-516,-504,-500,-492,-658,-714,-708,-690,-897,-721,-1030,-1040,-1105,-1092,-1149,-770,-1589,-1570,-1492,-1425,-2278,-1187,-1200,-1183,-1294,-1193,-29990,-1210,-29992,-29991,-29991,-29989,-29989,-29990,-29990,-29991,-29991,-29990,-29990,-29988]} 1. d4 {[%emt 0:00:02]} d5 {[%emt 0:00:04]} 2. c4 {[%emt 0:00:06]} dxc4 {[%emt 0:00:02]} 3. e4 {[%emt 0:00:18]} b5 {[%emt 0:00:05]} 4. a4 {[%emt 0:01:02]} c6 {[%emt 0:00:18]} 5. Nc3 {[%emt 0:00:29]} b4 {[%emt 0:01:21]} 6. Nce2 {[%emt 0:02:36][%mdl 1024] White has compensation.} e6 {[%emt 0:00:41]} 7. Ng3 {[%emt 0:02:02]} Ba6 {[%emt 0:01:06]} 8. Nf3 {[%emt 0:00:57] The position is equal.} c5 {[%emt 0:00:38]} 9. Be2 {[%emt 0:03:06]} (9. Be3 $11 {might be stronger.}) 9... cxd4 {[%emt 0:11:12]} 10. Nxd4 {[%emt 0:00:56]} Bc5 {[%emt 0:14:01]} 11. Be3 {[%emt 0:03:15][%cal Od4e6]} Nd7 {[%emt 0:02:59]} 12. O-O {[%emt 0:00:53] aiming for Nh5.} Qb6 {[%emt 0:10:33]} (12... Rc8 $11) 13. Nh5 {[%emt 0:06:29]} (13. a5 $14 Qb7 14. Rc1) 13... O-O-O $1 $36 {[%emt 0:07:10][%mdl 2048] White must now prevent ...Ne5. Black has the initiative.} 14. Nc2 $2 {[%emt 0:03:52] [#] Black continues to play with concentration.} (14. a5 $1 $11 {and White has nothing to worry.} Qc7 15. Qe1) 14... b3 $1 $19 {[%emt 0:07:08]} 15. Na3 {[%emt 0:00:53]} Bxe3 {[%emt 0:01:22]} 16. fxe3 {[%emt 0:01:52]} Qxe3+ {[%emt 0:01:59]} 17. Kh1 {[%emt 0:00:53] [#]} Ne5 {[%emt 0:03:30]} (17... Qxe4 $2 18. Qd6 Nb8 (18... Nb6 $2 19. Qc5+ Kb7 20. Rxf7+ Rd7 21. Bf3 $18) 19. Qc5+ Qc6 20. Qxa7 $18) 18. Qe1 {[%emt 0:00:32]} Rd2 {[%emt 0:01:37]} (18... Qxe4 19. Rc1 Bb7 20. Nf4 $15) 19. Nxc4 $2 {[%emt 0:01:33]} (19. Ng3 {is the only way for White.}) 19... Bxc4 {[%emt 0:01:21]} (19... Qxe2 20. Nxd2 Qxh5 21. Nf3 $11) 20. Bxc4 {[%emt 0:00:26]} Nxc4 {[%emt 0:00:28] Excellent horsemanship.} 21. Qc1 {[%emt 0:01:47]} Qxe4 {[%emt 0:02:26][%csl Gd2][%cal Re4g2]} 22. Rf3 {[%emt 0:00:52]} Nf6 {[%emt 0:01:53]} 23. Ng3 {[%emt 0:00:58]} Qd5 {[%emt 0:01:56]} 24. Nf1 {[%emt 0:00:08]} Rc2 {[%emt 0:00:47]} 25. Qf4 {[%emt 0:00:20]} Rd8 {[%emt 0:00:39]} 26. Re1 {[%emt 0:00:38]} Qd4 {[%emt 0:01:31]} 27. Qg3 {[%emt 0:00:18]} Ne4 {[%emt 0:01:24]} (27... Qxb2 28. Rxb3 Qd4 29. Rb8+ Kd7 30. Rb7+ Ke8 31. Qxg7 $11) 28. Rxe4 {[%emt 0:00:50]} Qxe4 {[%emt 0:00:04]} 29. Rxb3 {[%emt 0:00:08]} Qe5 {[%emt 0:00:53]} 30. Qf3 {[%emt 0:00:15]} Qd5 {[%emt 0:00:05] Threatens to win with ...Qxf3.} ({Worse is} 30... Rxb2 31. Qb7#) 31. Qg3 {[%emt 0:00:08]} Ne5 {[%emt 0:00:33] ...Qc4 is the strong threat.} 32. Rb5 {[%emt 0:00:30]} Qd3 {[%emt 0:01:07]} (32... Qc4 $142 33. Rb8+ Kxb8 34. Qxe5+ Ka8 35. Qe1 Rc1 (35... Rxb2 $2 36. h3 $19) 36. Qxc1 Qxc1 37. Kg1 Rd1 (37... Qxb2 {leads to mate.} 38. h3 Rd1 39. h4 Qd4+ 40. Kh2 Qf4+ 41. Kh3 Rd3+ 42. g3 Qxf1+ 43. Kh2 Rd2#) (37... Qc5+ 38. Kh1 Rd1 39. h4 Qe5 40. Kg1 Qf4 41. g4 Qg3+ 42. Kh1 Rxf1#) 38. Kf2 Qf4+ (38... Rxf1+ {gets mated.} 39. Kg3 Qg5+ 40. Kh3 Rg1 41. b4 Qxg2+ 42. Kh4 Qxh2#) 39. Ke2 Qxf1+ 40. Ke3 Rd3+ 41. Ke4 Qf5#) 33. Qf4 {[%emt 0:00:39]} Rd4 {[%emt 0:00:20] Black mates.} 34. Rb8+ {[%emt 0:00:13]} Kxb8 {[%emt 0:00:06]} 35. Qxe5+ {[%emt 0:00:05]} Kb7 {[%emt 0:00:06][%cal Rd3f1]} 36. Qb5+ {[%emt 0:00:12]} Qxb5 {[%emt 0:00:06]} 37. axb5 {[%emt 0:00:03]} Rd1 {[%emt 0:00:06][%cal Rd1f1]} 38. Kg1 {[%emt 0:00:01]} Rcc1 {[%emt 0:00:06] Weighted Error Value: White=1.17/Black=0.39.  Loses game:     	White=1     	---        Mistake:       	White=3     	Black=1      Inaccurate:     	White=1     	Black=1      OK:         	White=2     	Black=3      Best:        	White=1     	Black=2      Strong:       	---       	Black=2} 0-1

[Event "1000 GM Labor Day Super Swiss 2024"]
[Site "San Jose"]
[Date "2024.09.01"]
[Round "4.17"]
[White "Widjaja, Luke"]
[Black "Yan, Nathan"]
[Result "1/2-1/2"]
[Annotator "TA"]
[ECO "C54"]
[WhiteElo "2056"]
[BlackElo "2160"]
[PlyCount "67"]
[EventDate "2024.08.30"]
[EventType "swiss"]
[EventCountry "USA"]
[SourceTitle "playchess.com"]
[Source "ChessBase"]
[SourceQuality "1"]
[TimeControl "5400+30"]

{[%evp 15,67,33,27,37,32,1,2,0,4,12,0,0,11,1,77,36,29,40,45,39,50,38,18,22,49,23,23,23,20,21,35,0,0,0,10,8,23,18,22,0,3,2,4,5,7,4,4,4,4,6,6,2,7,0]} 1. e4 {[%emt 0:00:02]} e5 {[%emt 0:09:52]} 2. Nf3 {[%emt 0:00:08]} Nc6 {[%emt 0:00:23]} 3. Bc4 {[%emt 0:00:26]} Bc5 {[%emt 0:00:42]} 4. c3 {[%emt 0:00:07]} Nf6 {[%emt 0:00:06]} 5. d3 {[%emt 0:00:16]} O-O {[%emt 0:00:07]} 6. O-O {[%emt 0:00:09][%cal Bh1f1,Bf1e1,Be1e5][%mdl 32]} d5 {[%emt 0:01:25]} 7. exd5 {[%emt 0:00:06]} Nxd5 {[%emt 0:00:02]} 8. Re1 {[%emt 0:06:25]} Bg4 {[%emt 0:00:38]} 9. h3 {[%emt 0:01:41]} Bh5 {[%emt 0:00:20]} 10. b4 {[%emt 0:03:04]} Be7 {[%emt 0:02:46]} 11. b5 {[%emt 0:07:39]} Na5 {[%emt 0:00:02]} 12. Rxe5 {[%emt 0:00:27]} Nf6 {[%emt 0:00:02] [#] ...Nxc4 would now be deadly.} 13. Nbd2 {[%emt 0:08:45][%cal Bb1d2,Bd2f1,Bf1e3][%mdl 32]} Bd6 {[%emt 0:04:54]} 14. Re1 {[%emt 0:01:09]} Bf4 {[%emt 0:08:28]} (14... Re8 $11) 15. Nf1 {[%emt 0:06:27]} Bxc1 {[%emt 0:03:41]} 16. Rxc1 {[%emt 0:00:03]} Nxc4 {[%emt 0:00:19]} 17. dxc4 {[%emt 0:00:03]} Qxd1 {[%emt 0:01:58]} 18. Rcxd1 {[%emt 0:00:39]} Bxf3 {[%emt 0:00:14]} 19. gxf3 {[%emt 0:00:03]} Rfe8 {[%emt 0:00:18]} 20. Ne3 {[%emt 0:05:45]} a6 {[%emt 0:08:10]} 21. a4 {[%emt 0:13:25]} axb5 {[%emt 0:01:34]} 22. axb5 {[%emt 0:00:17]} Ra3 {[%emt 0:04:07]} 23. Nd5 {[%emt 0:01:53]} Rxe1+ {[%emt 0:00:12]} 24. Rxe1 $11 {[%emt 0:00:04][%mdl 4096] [#] Endgame. Re7 is the strong threat. KRN-KRN} c6 {[%emt 0:01:57]} 25. bxc6 {[%emt 0:06:22]} bxc6 {[%emt 0:00:02]} 26. Ne7+ {[%emt 0:00:11]} Kf8 {[%emt 0:00:07] The position is equal.} 27. Re3 {[%emt 0:04:30]} c5 {[%emt 0:00:37]} 28. Nd5 {[%emt 0:02:08]} Nxd5 {[%emt 0:01:05]} 29. cxd5 {[%emt 0:00:05] KR-KR} c4 {[%emt 0:50:52]} 30. d6 {[%emt 0:02:18] Threatening Kg2.} Ra1+ {[%emt 0:00:00]} 31. Kg2 {[%emt 0:00:04] Strongly threatening d7.} Rd1 {[%emt 0:00:00]} 32. Re4 {[%emt 0:00:56]} Rxd6 {[%emt 0:00:00]} 33. Rxc4 {[%emt 0:00:08]} Rd1 {[%emt 0:00:00]} 34. Rc7 {[%emt 0:00:48] Weighted Error Value: White=0.11 (very precise) /Black=0.06 (flawless) .  Mistake:       	---       	Black=1      Inaccurate:     	White=4     	Black=1      OK:         	White=8     	Black=14     Best:        	---       	Black=2} 1/2-1/2

[Event "1000 GM Labor Day Super Swiss 2024"]
[Site "San Jose"]
[Date "2024.09.01"]
[Round "4.18"]
[White "Bhatta, Rohit"]
[Black "Harish, Neeraj"]
[Result "1/2-1/2"]
[Annotator "TA"]
[ECO "E04"]
[WhiteElo "2025"]
[BlackElo "2118"]
[PlyCount "72"]
[EventDate "2024.08.30"]
[EventType "swiss"]
[EventCountry "USA"]
[SourceTitle "playchess.com"]
[Source "ChessBase"]
[SourceQuality "1"]
[TimeControl "5400+30"]

{[%evp 11,72,29,25,15,6,16,17,13,12,10,8,12,10,14,15,1,3,12,9,16,25,-11,-8,-10,-14,-7,-17,-16,-8,-13,-6,0,-2,-38,-7,-3,0,0,0,-4,0,0,0,0,0,0,0,2,33,0,0,0,0,0,0,0,16,0,0,0,16,0,0]} 1. d4 {[%emt 0:08:26]} Nf6 {[%emt 0:00:25]} 2. c4 {[%emt 0:00:18]} e6 {[%emt 0:00:07]} 3. g3 {[%emt 0:00:19]} d5 {[%emt 0:00:30][%cal Bd7d5,Bd5c4,Bc4c3][%mdl 32]} 4. Bg2 {[%emt 0:00:14]} dxc4 {[%emt 0:00:37]} 5. Nf3 {[%emt 0:00:21]} a6 {[%emt 0:00:19]} 6. O-O {[%emt 0:00:33]} Nc6 {[%emt 0:00:24]} 7. Nbd2 {[%emt 0:00:20][%mdl 1024] White has compensation.} b5 {[%emt 0:01:03][%cal Oc8b7]} 8. b3 {[%emt 0:00:25]} c3 {[%emt 0:00:15]} 9. Nb1 {[%emt 0:00:17][%cal Of3e5] [#] Strongly threatening Ne5!} b4 {[%emt 0:00:12] ...Bb7 is the strong threat.} 10. a3 $1 {[%emt 0:00:24]} Rb8 {[%emt 0:00:24] White must now prevent ...a5.} 11. axb4 {[%emt 0:00:52]} Bxb4 {[%emt 0:00:13]} 12. Qd3 {[%emt 0:01:37]} e5 {[%emt 0:00:31] aiming for ...e4.} 13. Nxc3 {[%emt 0:07:27]} exd4 {[%emt 0:00:17]} 14. Na4 {[%emt 0:06:58]} O-O {[%emt 0:06:24]} 15. Bb2 {[%emt 0:07:21][%cal Of1c1]} Bg4 {[%emt 0:11:17]} (15... Na5 {feels hotter.} 16. Nxd4 c5 17. Nc6 Nxc6 18. Bxc6 Qxd3 19. exd3 Bd7) 16. Nxd4 {[%emt 0:21:26]} (16. Bxd4 $2 {too greedy.} Bxf3 17. exf3 Nxd4 $19 (17... Qxd4 $2 18. Qxa6 Na5 19. Rfd1 $19)) 16... Nxd4 {[%emt 0:03:35]} 17. Bxd4 {[%emt 0:00:54] [#]} Bxe2 $1 {[%emt 0:01:00]} 18. Qxe2 {[%emt 0:00:19]} Qxd4 {[%emt 0:00:07]} 19. Qxa6 {[%emt 0:01:03] White is weak on the dark squares} Bd6 {[%emt 0:04:23]} 20. Rad1 {[%emt 0:14:14]} Qb4 {[%emt 0:05:14]} 21. Rd3 {[%emt 0:05:20]} Rfe8 {[%emt 0:04:00][%cal Bf8e8,Be8e2,Be2a2][%mdl 32]} 22. Qc4 {[%emt 0:22:22]} h5 {[%emt 0:06:49]} 23. Nb2 {[%emt 0:00:00]} Re2 {[%emt 0:06:04]} 24. Qxb4 {[%emt 0:00:00]} Bxb4 {[%emt 0:01:28]} 25. Nc4 {[%emt 0:00:00]} Bc5 {[%emt 0:00:36]} 26. Bf3 {[%emt 0:00:00]} Ra2 {[%emt 0:02:07]} 27. Ne5 {[%emt 0:00:00]} Rb2 {[%emt 0:02:41]} 28. Nd7 {[%emt 0:00:00]} Nxd7 {[%emt 0:00:47]} 29. Rxd7 {[%emt 0:00:00]} Bb6 {[%emt 0:06:22]} 30. Bd5 {[%emt 0:00:20]} Rf8 {[%emt 0:00:12] The position is equal.} 31. h4 {[%emt 0:01:26]} g6 {[%emt 0:01:15]} 32. Bc4 {[%emt 0:00:32]} Kg7 {[%emt 0:00:31]} 33. Kg2 {[%emt 0:00:16]} Kf6 {[%emt 0:00:54]} 34. Kf3 {[%emt 0:00:42]} Rc2 {[%emt 0:00:39]} 35. Kg2 {[%emt 0:00:54]} Rb2 {[%emt 0:03:35]} 36. Kf3 {[%emt 0:00:16]} Rc2 {[%emt 0:00:16] A balanced but interesting game.   Weighted Error Value: White=0.05 (flawless) /Black=0.04 (flawless) .  Inaccurate:     	White=3     	Black=2      OK:         	White=15    	Black=14     Strong:       	White=1     	---} 1/2-1/2

[Event "1000 GM Labor Day Super Swiss 2024"]
[Site "San Jose"]
[Date "2024.09.01"]
[Round "4.19"]
[White "Tang, Dylan"]
[Black "Angeles Mercado, Anthony R"]
[Result "1/2-1/2"]
[Annotator "TA"]
[ECO "B76"]
[WhiteElo "2092"]
[BlackElo "2083"]
[PlyCount "79"]
[EventDate "2024.08.30"]
[EventType "swiss"]
[EventCountry "USA"]
[SourceTitle "playchess.com"]
[Source "ChessBase"]
[SourceQuality "1"]
[TimeControl "5400+30"]

{[%evp 23,78,53,80,83,90,82,94,88,89,92,117,120,122,57,60,46,445,434,602,-36,-28,-66,-54,-51,-44,-82,-85,-75,-22,-27,-29,-62,-62,-66,-76,-164,-170,-172,-168,-171,-156,-180,-105,-104,-79,-79,-79,-97,-97,-97,-12,-18,-20,-63,-28,-39,-22]} 1. e4 {[%emt 0:02:05]} c5 {[%emt 0:01:20]} 2. Nf3 {[%emt 0:01:18]} d6 {[%emt 0:02:04]} 3. d4 {[%emt 0:00:11]} cxd4 {[%emt 0:00:07]} 4. Nxd4 {[%emt 0:00:06]} Nf6 {[%emt 0:00:05]} 5. Nc3 {[%emt 0:00:31]} a6 {[%emt 0:00:04]} 6. Be2 {[%emt 0:00:44]} g6 {[%emt 0:04:00]} 7. Be3 {[%emt 0:02:55]} Bg7 {[%emt 0:00:20]} 8. Qd2 {[%emt 0:03:01]} Nc6 {[%emt 0:06:21]} 9. O-O-O {[%emt 0:04:48]} O-O {[%emt 0:08:39]} 10. Kb1 {[%emt 0:06:45]} Nxd4 {[%emt 0:21:32]} 11. Bxd4 {[%emt 0:00:13]} Be6 {[%emt 0:00:07]} 12. f3 {[%emt 0:10:43]} Qc7 {[%emt 0:01:55]} 13. h4 {[%emt 0:12:49][%cal Oh4h5]} Rfc8 {[%emt 0:01:46] [#]} 14. h5 $1 {[%emt 0:01:11]} Qa5 {[%emt 0:00:20][%cal Oc8c3] Strongly threatening ...Rxc3!} (14... Nxh5 $2 15. Bxg7 Kxg7 16. g4 $18) 15. hxg6 {[%emt 0:10:30] White is better.} hxg6 {[%emt 0:01:42]} 16. a3 {[%emt 0:07:32]} b5 {[%emt 0:04:44]} 17. Qg5 {[%emt 0:01:55]} Qc7 {[%emt 0:02:44]} 18. e5 {[%emt 0:05:01] White is more active.} (18. Rh4 $16) 18... dxe5 $14 {[%emt 0:02:28]} 19. Bxe5 {[%emt 0:00:06]} Qc5 {[%emt 0:01:11][%mdl 8192] [#]} (19... Ne4 $14 20. Bxc7 (20. Nxe4 $2 {too greedy.} Qxc2+ 21. Ka1 Qb3 $19) 20... Nxg5) 20. Bxf6 $1 $18 {[%emt 0:03:10]} exf6 {[%emt 0:17:13]} ({Don't play} 20... Bxf6 21. Rd8+ Rxd8 22. Qxc5) 21. Qxc5 {[%emt 0:00:12]} ({Only move:} 21. Rd8+ $1 $18 Rxd8 22. Qxc5) 21... Rxc5 $15 {[%emt 0:00:04]} 22. Bd3 {[%emt 0:00:54]} f5 {[%emt 0:00:54]} 23. Ne2 {[%emt 0:00:22]} Be5 {[%emt 0:03:12]} 24. c3 {[%emt 0:02:29]} a5 {[%emt 0:00:54][%cal Ob5b4]} 25. Nd4 {[%emt 0:08:39]} Bd7 {[%emt 0:00:51] This pair of bishops is nice.} (25... Bxd4 $17 26. cxd4 Rd5) 26. Rhe1 $11 {[%emt 0:01:16]} Bf6 {[%emt 0:01:14][%cal Ob5b4]} 27. Nb3 {[%emt 0:03:43]} Rc7 {[%emt 0:00:16][%cal Ob5b4]} 28. Bc2 {[%emt 0:02:39]} b4 {[%emt 0:06:50]} 29. cxb4 {[%emt 0:01:12]} (29. Nc5 $17 {might work better.} Rxc5 30. Rxd7) 29... axb4 $19 {[%emt 0:00:05]} 30. axb4 {[%emt 0:00:07]} Rb8 {[%emt 0:01:03]} 31. Rd6 {[%emt 0:02:38]} Kg7 {[%emt 0:00:12]} 32. Red1 {[%emt 0:03:41] [#]} Ba4 {[%emt 0:02:49]} ({Black should play} 32... Bc8 $1 $19 33. Nd4 Rxb4) 33. Nd4 $17 {[%emt 0:01:46]} Rxb4 {[%emt 0:00:23]} 34. Bxa4 {[%emt 0:00:04]} Rxa4 {[%emt 0:00:07]} 35. Nc2 {[%emt 0:00:38]} Rb7 {[%emt 0:01:43]} 36. b4 {[%emt 0:00:05]} Rba7 {[%emt 0:01:34]} (36... Bc3 $17 37. Rd7 Rb6) 37. Rd7 $11 {[%emt 0:00:58]} Ra8 {[%emt 0:02:19]} 38. R7d3 {[%emt 0:00:34]} Rb8 {[%emt 0:02:25]} 39. Rb3 {[%emt 0:00:34]} Rb5 {[%emt 0:00:15]} 40. Rdd3 {[%emt 0:02:25] Quite a comeback for White.   Weighted Error Value: White=0.33/Black=0.53.  Loses game:     	---       	Black=1      Missed win:     	White=1     	---        Mistake:       	White=2     	Black=3      Inaccurate:     	White=3     	Black=2      OK:         	White=9     	Black=10     Best:        	White=1     	Black=4      Strong:       	White=1     	---        Brilliant:      	White=1     	---} 1/2-1/2

[Event "1000 GM Labor Day Super Swiss 2024"]
[Site "San Jose"]
[Date "2024.09.01"]
[Round "4.20"]
[White "Zuluaga Mancilla, Cesar"]
[Black "Ubaldo Suarez, Maria Gisela"]
[Result "1-0"]
[Annotator "TA"]
[ECO "D02"]
[WhiteElo "2166"]
[BlackElo "1958"]
[PlyCount "94"]
[EventDate "2024.08.30"]
[EventType "swiss"]
[EventCountry "USA"]
[SourceTitle "playchess.com"]
[Source "ChessBase"]
[SourceQuality "1"]
[TimeControl "5400+30"]

{[%evp 9,94,-17,64,19,18,0,6,0,0,-7,3,-4,0,0,7,4,20,0,0,0,0,0,21,0,73,29,102,0,4,11,9,0,0,-50,0,-78,-51,-42,-35,-33,-32,-37,0,0,-11,-22,-31,-29,0,-52,0,0,0,0,19,0,2,0,35,0,0,0,41,0,64,59,98,100,98,69,130,128,115,126,127,121,130,137,141,123,216,216,29987,29973,29989,29990,29992]} 1. d4 {[%emt 0:05:48]} d5 {[%emt 0:01:54]} 2. Nf3 {[%emt 0:00:07]} Nf6 {[%emt 0:00:15]} 3. Bf4 {[%emt 0:00:08]} c5 {[%emt 0:02:53]} 4. c3 {[%emt 0:00:07]} Nc6 {[%emt 0:00:30]} 5. dxc5 {[%emt 0:02:22]} a5 {[%emt 0:00:46]} (5... e6 $11) 6. e3 {[%emt 0:00:22] White is more active.} e6 {[%emt 0:00:11]} 7. Bb5 {[%emt 0:00:09]} Bxc5 {[%emt 0:00:27]} 8. Nbd2 {[%emt 0:00:51] The position is equal.} O-O {[%emt 0:01:00]} 9. a4 {[%emt 0:00:33]} Bd7 {[%emt 0:02:08]} 10. Nb3 {[%emt 0:01:27]} Be7 {[%emt 0:02:07]} 11. h3 {[%emt 0:00:30]} Ne4 {[%emt 0:01:10]} 12. O-O {[%emt 0:00:11]} Rc8 {[%emt 0:06:14]} 13. Nbd2 {[%emt 0:01:01]} f5 {[%emt 1:17:25]} 14. Nxe4 {[%emt 0:00:46]} fxe4 {[%emt 0:00:00]} 15. Nd2 {[%emt 0:00:09][%cal Bf3d2,Bd2b3,Bb3d4][%mdl 32]} Kh8 {[%emt 0:00:00]} 16. Bg3 {[%emt 0:00:26]} Rf5 {[%emt 0:00:00]} (16... Be8 $11) 17. Nb3 {[%emt 0:04:20]} Ne5 {[%emt 0:00:00] [#]} (17... Be8 $11) 18. Be2 {[%emt 0:09:09]} (18. Nd4 $1 $16 {[%cal Rd4f5]} Bxb5 19. axb5) 18... Nc4 {[%emt 0:00:00][%cal Be5c4,Bc4b2,Bb2d3][%mdl 32]} 19. Nd4 {[%emt 0:06:02]} Rg5 {[%emt 0:00:00][%cal Og5g3]} (19... Nxb2 $2 20. Qb3 Nd3 21. Bxd3 (21. Qxb7 Rf8 $11) 21... exd3 22. Nxf5 exf5 23. Qxb7 $18 (23. Qxd5 Bf6 $18)) 20. Bf4 {[%emt 0:03:28]} Rg6 {[%emt 0:00:00]} (20... Nxb2 21. Qb1 (21. Qb3 Nd3 $18) 21... Nd3 22. Bxg5 (22. Qxb7 Nxf4 23. exf4 Rg6 $17) (22. Bxd3 exd3 23. Bxg5 Bxg5 $18) 22... Bxg5 23. Bxd3 (23. Qxb7 Rb8 $16) 23... exd3 24. Qxd3 $14) 21. Bh5 {[%emt 0:01:58]} (21. Bxc4 $11 Rxc4 22. Be5) 21... Rf6 {[%emt 0:00:00]} ({Black should play} 21... e5 $1 $15 22. Bxg6 hxg6) 22. b3 {[%emt 0:04:45]} (22. Be2 $1 $11 {keeps the balance.}) 22... Nb2 {[%emt 0:00:00]} 23. Qd2 {[%emt 0:02:13]} Nd3 {[%emt 0:00:00] [#] White must now prevent ...e5.} 24. Bg3 {[%emt 0:00:13]} e5 {[%emt 0:00:00]} 25. Nb5 {[%emt 0:02:05]} Bxb5 {[%emt 0:00:00]} 26. axb5 {[%emt 0:00:15]} d4 {[%emt 0:00:00]} 27. exd4 {[%emt 0:15:10]} (27. c4 {simplifies} Bc5 28. Bg4 Ra8 29. Kh2) 27... exd4 {[%emt 0:00:00]} 28. cxd4 {[%emt 0:00:09] And now Bg4 would win.} Qxd4 {[%emt 0:00:00]} 29. Bh4 {[%emt 0:01:39]} ({Better is} 29. Rxa5 $11 Bb4 30. Ra4) 29... Rh6 {[%emt 0:03:35]} (29... Bb4 $15 30. Qe3 Qe5) 30. Bxe7 $11 {[%emt 0:06:57]} Rxh5 {[%emt 0:00:01]} 31. Rxa5 {[%emt 0:04:05]} Qd7 {[%emt 0:01:57]} 32. Bg5 {[%emt 0:05:37]} h6 {[%emt 0:00:27]} 33. Be3 {[%emt 0:00:11]} Rxb5 {[%emt 0:00:13]} 34. Rb1 {[%emt 0:07:35][%cal Bf1b1,Bb1a1,Ba1a6,Ba6b6][%mdl 32]} Rxa5 {[%emt 0:01:07]} 35. Qxa5 {[%emt 0:00:07]} b5 {[%emt 0:00:27]} 36. Qb6 {[%emt 0:00:23]} Kh7 {[%emt 0:00:14]} (36... Ra8 $11) 37. Ra1 $1 $14 {[%emt 0:00:13]} Rc6 {[%emt 0:00:51]} 38. Qb8 {[%emt 0:00:24]} (38. Qxb5 $2 {too greedy.} Rc1+ 39. Rxc1 Qxb5 $19) 38... Rc8 {[%emt 0:00:27] Wards off Ra8} 39. Qg3 {[%emt 0:01:12]} (39. Ra7 {simplifies} Rxb8 40. Rxd7 Ra8 41. Rb7) 39... Rc7 {[%emt 0:00:43] Prevents Ra7} ({Black should try} 39... Nc5 $14) 40. Ra6 {[%emt 0:00:23]} Qf7 {[%emt 0:01:05][%cal Od3b4] Against Qg6+} 41. Qg4 {[%emt 0:01:48]} Re7 {[%emt 0:01:16]} 42. Rb6 {[%emt 0:03:55]} Re5 {[%emt 0:00:52][%cal Of7f5]} 43. Bd4 $36 {[%emt 0:02:53][%mdl 2048] White has strong initiative.} h5 {[%emt 0:01:01]} 44. Qh4 {[%emt 0:02:44]} g5 {[%emt 0:00:25]} (44... Qc7 $16 {might work better.}) 45. Qg3 $18 {[%emt 0:00:04]} Rf5 {[%emt 0:00:17]} (45... Nf4 $18 46. Qe3 (46. Bxe5 $2 {is the wrong capture.} Ne2+ 47. Kh2 Nxg3 $19) 46... Nd5) 46. Qb8 {[%emt 0:00:35][%csl Gd4][%cal Rb8h8]} Qf8 {[%emt 0:00:28]} 47. Qb7+ {[%emt 0:00:55]} ({Weaker is} 47. Rxb5 Qxb8 48. Rxb8 Nf4 $18) 47... Rf7 {[%emt 0:01:34] Weighted Error Value: White=0.16 (very precise) /Black=0.39.  Mistake:       	White=4     	Black=8      Inaccurate:     	White=3     	Black=6      OK:         	White=10    	Black=13     Best:        	White=2     	Black=2      Strong:       	White=1     	---} 1-0